Cogmind - Beta 14 @@@ ROGUE MODE // 2024.12.21 @ 18:48:39 Player: blackdogzx Result: Destroyed by S-10 Pest with Light Assault Rifle Performance ------------- Evolutions (1) 500 Regions Visited (2) 400 Robots Destroyed (11) 55 Value Destroyed (207) 207 Prototype IDs (0) 0 Alien Tech Used (0) 0 Bonus (0) 0 TOTAL SCORE: 1162 Bonus ------- None Cogmind --------- Core Integrity 0/400 Matter 500/500 Energy 100/100 System Corruption 1% Temperature Cool (0) Movement Core (150) Ox2 Location -9/Materials Parts ------- > --- POWER (1) -------- (None) > --- PROPULSION (2) --- (None) > --- UTILITY (4) ------ Small Storage Unit High-capacity Matter Pod > --- WEAPON (2) ------- (None) > --- INVENTORY (8) ---- Ion Engine Light Ion Engine Structural Scanner Peak State ------------ > --- POWER ------------ Ion Engine > --- PROPULSION ------- Improved Aluminum Leg Improved Aluminum Leg > --- UTILITY ---------- Small Storage Unit Structural Scanner > --- WEAPON ----------- Assault Rifle Assault Rifle > --- INVENTORY -------- Light Ion Engine [Rating: 9] Favorites ----------- Power Ion Engine Engine Ion Engine Propulsion Improved Aluminum Leg Leg Improved Aluminum Leg Utility Small Storage Unit Device Structural Scanner Storage Small Storage Unit Weapon Assault Rifle Ballistic Gun Assault Rifle Build | -11 -10 -9 ------- Run | Yrd Mat Mat Slots Evolved 2 | . . 2 Power . | . . . Propulsion . | . . . Utility 2 | . . 2 Weapon . | . . . Parts Attached 11 | 6 5 . Power 2 | 2 . . Engine 2 | 2 . . Core . | . . . Reactor . | . . . Propulsion 4 | 2 2 . Treads . | . . . Leg 4 | 2 2 . Wheel . | . . . Hover . | . . . Flight . | . . . Utility 3 | 1 2 . Device 1 | . 1 . Storage 2 | 1 1 . Processor . | . . . Hackware . | . . . Protection . | . . . Artifact . | . . . Weapon 2 | 1 1 . Energy Gun . | . . . Energy Cannon . | . . . Ballistic Gun 2 | 1 1 . Ballistic Cannon . | . . . Launcher . | . . . Special Weapon . | . . . Impact Weapon . | . . . Slashing Weapon . | . . . Piercing Weapon . | . . . Special Melee Weapon . | . . . Unidentified Prototypes . | . . . Parts Lost 5 | . . 5 Power 1 | . . 1 Propulsion 2 | . . 2 Utility . | . . . Weapon 2 | . . 2 Highest Loss Streak 4 | . . 4 To Critical Strikes . | . . . Average Slot Usage (%) 84 | . 95 62 Engine 12 | . 14 9 Leg 23 | . 28 14 Device 6 | . 8 . Storage 19 | . 17 22 Ballistic Gun 22 | . 24 16 Peak Build Rating 9 | 5 9 9 Average Rating 7 | 3 8 6 On Entrance 4 | . 5 9 Naked Turns . | . . . Heaviest Build 18 | 12 18 18 Greatest Support 26 | 20 26 26 Greatest Overweight (x) 4 | 3 . 4 Average Overweight (x) . | . . . Largest Inventory Capacity 8 | 8 8 8 Average Capacity 7 | 7 8 8 Most Carried 3 | 1 3 3 Average Carried 2 | . 1 3 Final Capacity 8 | 8 8 8 Final Carried 3 | 1 3 3 Class Distribution -------------------- 100% | Mutant Dominant Class ---------------- Mutant | -10/Materials Mutant | -9/Materials Resources | -11 -10 -9 ----------- Run | Yrd Mat Mat Matter Collected 677 | 162 484 31 Remotely . | . . . Salvage Created 293 | . 249 44 Parts 16 | . 14 2 Haulers Intercepted . | . . . Recyclers Shooed . | . . . Parts Field Recycled . | . . . Retrieved Matter . | . . . Parts Self-Destructed . | . . . Prevented . | . . . Kills | -11 -10 -9 ------- Run | Yrd Mat Mat Combat Hostiles Destroyed 9 | . 8 1 Guns 9 | . 8 1 Classes Destroyed 4 | . 4 . Builder 1 | . 1 . Operator 1 | . 1 . Swarmer 5 | . 5 . Grunt 4 | . 3 1 Best Kill Streak 4 | . 4 1 Combat Bots Only 3 | . 3 1 Max Kills in Single Turn 1 | . 1 1 Gunslinging . | . . . Exploded . | . . . Melee . | . . . Uniques/NPCs Destroyed . | . . . Combat | -11 -10 -9 -------- Run | Yrd Mat Mat Hostile Shots Fired 159 | . 41 118 Missed 37 | . 10 27 Damage Taken 1060 | . 278 782 Core 457 | . 52 405 Absorbed by Shields . | . . . Core Remaining (%) 89 | 100 79 . Volleys Fired 32 | . 26 6 Largest 2 | . 2 2 Hottest 40 | . 40 40 Shots Fired 60 | . 49 11 Gun 60 | . 49 11 Cannon . | . . . Launcher . | . . . Special . | . . . Kinetic 60 | . 49 11 Thermal . | . . . Explosive . | . . . Electromagnetic . | . . . Robot Hit Streak 13 | . 13 3 Robot Miss Streak 4 | . 4 3 Penetration Max . | . . . Secondary Targets . | . . . Shots Hit Robots 37 | . 31 6 Core Hits 16 | . 13 3 Critical Kills . | . . . Critical Parts Destroyed 1 | . . 1 Critical Strikes 1 | . . 1 Destroy 1 | . . 1 Melee Attacks . | . . . Impact . | . . . Slashing . | . . . Piercing . | . . . Sneak Attacks . | . . . Combat Hostiles . | . . . Follow-up Attacks . | . . . Damage Inflicted 474 | . 402 72 Guns 466 | . 396 70 Cannons . | . . . Explosions . | . . . Melee . | . . . Ramming 8 | . 6 2 Kinetic 466 | . 396 70 Thermal . | . . . Explosive . | . . . Electromagnetic . | . . . Impact . | . . . Slashing . | . . . Piercing . | . . . Highest Corruption 1 | . . 1 Average Corruption 1 | . . 1 Corruption Purged . | . . . Corruption Blocked . | . . . Effects 3 | . . 3 Matter Fused 1 | . . 1 Heat Flow Errors 1 | . . 1 Alerts 1 | . . 1 Overload Shots . | . . . Overflow Damage . | . . . Projectiles . | . . . Explosions . | . . . Melee . | . . . Knockbacks . | . . . Impact . | . . . Kinetic . | . . . Secondary . | . . . Self-Inflicted Damage . | . . . Shots . | . . . Rammed . | . . . Targets Rammed 7 | . 4 3 Kicked 7 | . 4 3 Crushed . | . . . Highest Temperature 155 | . . 155 Average Temperature 77 | . . 77 Received Heat Transfer 171 | . 72 99 Siege Activations . | . . . Robots Corrupted . | . . . Combat Hostiles . | . . . Parts Fried . | . . . Impact Corruptions . | . . . Robots Melted . | . . . Combat Hostiles . | . . . Parts Melted . | . . . Heat Transferred . | . . . Parts Sabotaged . | . . . Parts Stolen . | . . . Parts Stripped . | . . . Power Chain Reactions . | . . . Alert | -11 -10 -9 ------- Run | Yrd Mat Mat Peak Influence 155 | . 155 80 Initial 20 | . . 20 Average 45 | . 55 37 Maximum Alert Level . | . . . Low Security (%) 100 | 100 100 100 Level 1 . | . . . Level 2 . | . . . Level 3 . | . . . Level 4 . | . . . Level 5 . | . . . High Security . | . . . Max Security . | . . . Squads Dispatched 2 | . 1 1 Investigation . | . . . Extermination . | . . . Reinforcement 2 | . 1 1 Assault . | . . . Garrison . | . . . Intercept . | . . . Searches Triggered . | . . . Construction Impeded . | . . . Haulers Reinforced . | . . . Active Scanning Responses . | . . . Cargo Convoy Interrupts . | . . . Stealth | -11 -10 -9 --------- Run | Yrd Mat Mat Distress Signals 2 | . 2 . Communications Jammed . | . . . Distress Signals . | . . . Times Spotted 23 | . 12 11 Peak Tracking Total 6 | . 3 6 Tactical Retreats 3 | . . 3 Traps | -11 -10 -9 ------- Run | Yrd Mat Mat Traps Triggered 1 | . . 1 Indirectly . | . . . Trap Hack Attempts . | . . . Triggered . | . . . Disarmed . | . . . Reprogrammed . | . . . Reused . | . . . Traps Extracted . | . . . Installed . | . . . Triggered . | . . . Machines | -11 -10 -9 ---------- Run | Yrd Mat Mat Machines Disabled . | . . . Max in Single Turn . | . . . Machines Repaired . | . . . Machines Dismantled . | . . . Machines Sabotaged . | . . . Overloaded Fab Kills . | . . . Hacking | -11 -10 -9 --------- Run | Yrd Mat Mat Machines Accessed 1 | . 1 . Terminals 1 | . 1 . Fabricators . | . . . Repair Stations . | . . . Recycling Units . | . . . Scanalyzers . | . . . Garrison Access . | . . . Total Hacks 4 | . 4 . Successful 3 | . 3 . Failed 1 | . 1 . Catastrophic . | . . . Database Lockouts . | . . . Manual . | . . . Terminals 4 | . 4 . Fabricators . | . . . Repair Stations . | . . . Recycling Units . | . . . Scanalyzers . | . . . Garrison Access . | . . . Terminal Hacks 3 | . 3 . Record 3 | . 3 . Fabricator Hacks . | . . . Repair Station Hacks . | . . . Recycling Unit Hacks . | . . . Scanalyzer . | . . . Garrison Access Hacks . | . . . Unauthorized Hacks . | . . . Terminals . | . . . Fabricators . | . . . Repair Stations . | . . . Recycling Units . | . . . Scanalyzers . | . . . Garrison Access . | . . . Data Cores Recovered . | . . . Used . | . . . Hacking Detections 1 | . 1 . Full Trace Events . | . . . Feedback Events . | . . . Feedback Blocked . | . . . Robot Schematics Acquired . | . . . Robots Built . | . . . Authchips . | . . . Time . | . . . Total Robot Build Rating . | . . . Part Schematics Acquired . | . . . Parts Built . | . . . Authchips . | . . . Time . | . . . Total Part Build Rating . | . . . Parts Repaired . | . . . Time . | . . . Parts Recycled . | . . . Recycled Matter . | . . . Retrieved Matter . | . . . Retrieved Components . | . . . Parts Scanalyzed . | . . . Part Schematics Acquired . | . . . Parts Damaged . | . . . Bothacking | -11 -10 -9 ------------ Run | Yrd Mat Mat Used RIF Installer . | . . . Robots Hacked . | . . . Non-combat . | . . . Combat . | . . . Robot Hacks Applied . | . . . Relay Couplers Released . | . . . Fabnet Peak Effective % . | . . . Robots Rewired . | . . . Allies Hacked . | . . . Hacks Repelled . | . . . Allies | -11 -10 -9 -------- Run | Yrd Mat Mat Total Allies . | . . . Largest Group . | . . . Highest-Rated Group . | . . . Highest-Rated Ally . | . . . Total Orders . | . . . Ally Attacks . | . . . Total Damage . | . . . Kills . | . . . Allies Corrupted . | . . . Allies Melted . | . . . Intel | -11 -10 -9 ------- Run | Yrd Mat Mat Robot Analysis Total . | . . . Derelict Logs Recovered . | . . . Drone Launches . | . . . Drone Recoveries . | . . . Exploration | -11 -10 -9 ------------- Run | Yrd Mat Mat Turns Passed 757 | 56 464 237 Spaces Moved 466 | 36 302 128 Core 25 | 11 . 14 Treads . | . . . Legs 441 | 25 302 114 Wheels . | . . . Hover . | . . . Flight . | . . . Fastest Speed 50 | 50 120 120 Average Speed 128 | 131 120 146 Slowest Speed 250 | 200 120 250 Overloaded Moves . | . . . Propulsion Burnouts . | . . . Robots Hopped . | . . . Cave-ins Triggered . | . . . Exploration Rate (%) 24 | 3 54 15 Regions Visited 2 Branch Regions . Pre-discovered Areas . | . . . Known Exits Taken . | . . . Unknown Exits Taken 2 | 1 1 . Scrap Searched . | . . . Spaces Dug . | . . . Terrain Destroyed . | . . . Melee . | . . . Projectile . | . . . AOE . | . . . Terrain Rammed . | . . . Walls Destroyed . | . . . Machines Disabled . | . . . Actions | -11 -10 -9 --------- Run | Yrd Mat Mat Total 556 | 41 352 163 Wait 38 | . 12 26 Move 464 | 35 301 128 Hop . | . . . Pick Up 2 | . 2 . Fast Attach 7 | 5 2 . Attach . | . . . Detach . | . . . Swap 4 | 1 3 . Drop 2 | . 2 . Fire 32 | . 26 6 Melee . | . . . Ram . | . . . Kick 7 | . 4 3 Crush . | . . . Escape Stasis . | . . . Rewire . | . . . Trap . | . . . Miscellaneous . | . . . Route ------- -11/Scrapyard -10/Materials (discovered 3 exits: [*Mat x2] / [*Min]) -9/Materials History --------- Turn | Location | Event 19 | -11/Scrapyard | Discovered new exit (range 15) 57 | -11/Scrapyard | Entered Materials 141 | -10/Materials | Discovered new exit (range 13) 314 | -10/Materials | Build established: Mutant 344 | -10/Materials | Discovered new exit (range 7) 484 | -10/Materials | Discovered new exit (range 15) 521 | -10/Materials | Entered another Materials area 521 | -9/Materials | Evolved 2 slots: Utility x2 728 | -9/Materials | Core integrity fell below 50% 750 | -9/Materials | Core integrity fell below 20% 756 | -9/Materials | Lost 4 parts (1p1n2w) 758 | -9/Materials | Destroyed by S-10 Pest with Light Assault Rifle Last Messages --------------- 00634_ G-34 Mercenary destroyed. 00641_ Acquired 31 matter. 00678_ System corrupted: Heat flow error (+178). 00696_ Assault Rifle destroyed. 00707_ Kicked S-10 Pest. 00711_ Kicked S-10 Pest out of the way. 00712_ Imp. Aluminum Leg destroyed. 00717_ System corrupted: IFF burst signal emitted. 00719_ Critical hit (Burn: +37). 00725_ Ion Engine destroyed. 00730_ O-16 Technician: "IFF HANDSHAKE FAILED. SECURING TERMINAL." 00732_ K-01 Serf collects debris. 00733_ O-16 Technician uses terminal to summon reinforcements. 00733_ ALERT: Hostiles spotted, dispatching reinforcements to Terminal M001. 00733_ O-16 Technician locks terminal. 00740_ K-01 Serf collects debris. Map ----- +----------------------------------------------------+ | ?????????????????????????????????????????????????? | | ?????????????????????????????????????????????????? | | ?????????????????????????????????????????????????? | | ?????????????????????????????????????????????????? | | ?????????????????????????????????????????????????? | | ?????????????????????????????????????????????????? | | ?????????????????????????????????????????????????? | | ?????????????#####???????????????????????????????? | | ??????########"T"#######+####????????????????????? | | ??????# #????????????????????? | | ??????# #????????????????????? | | ??????# """ """ ##???????????????????? | | ???#######+## """ "T" "#???????????????????? | | ???# # """ T#???????????????????? | | ???# # """ "#???????????????????? | | ???# # """ #####+##?????????????? | | ???# """ # | ????????????? | | ???# """""# o ????????????? | | ???# """""# """ ^ ????????????? | | ???# """""# """ k ###/####?????????????? | | ???# """ # """ ^ #????????????????????? | | ???# # """ ^ #????????????????????? | | ???########## """ #????????????????????? | | ????????????# sk r #????????????????????? | | ????????????# s #????????????????????? | | ????????????# Ys @ #????????????????????? | | ????????????# ###/#### ##????????????????????? | | ???########### ## #?? #?????????????????????? | | ???# ! # ## #???#?????????????????????? | | ???? =# ## #?????????????????????????? | | ???? # ## #?????????????????????????? | | ???? """ # ## #?????????????????????????? | | ???# """%/ ## #?????????????????????????? | | ???? "" """%# ## % #?????????????????????????? | | ?????S"" ### ##+###?????????????????????????? | | ???? "" #?# ## #???????????????????????????? | | ????##########?# ## #???????????????????????????? | | ???????????????# ## #???????????????????????????? | | ???????????????# ## #???????????????????????????? | | ???????????????# ## #???????????????????????????? | | ???????????????# ## #???????????????????????????? | | ???????????????# ## #???????????????????????????? | | ???????????????# ## #???????????????????????????? | | ???????????????# ## #???????????????????????????? | | ???????????????# ## #???????????????????????????? | | ???????????????# ## #???????????????????????????? | | ??????????????## ## #???????????????????????????? | | ??????????????+ #???????????????????????????? | | ??????????????# #???????????????????????????? | | ??????????????# #???????????????????????????? | +----------------------------------------------------+ Best States ------------- Heat Dissipation 28 Energy Generation 10 Energy Capacity 250 Matter Stores 500 Matter Capacity 500 Sight Range 16 Terrain Scan Density 10 Evasion (%) 55 Item Schematics ----------------- None Robot Schematics ------------------ None Fabricated ------------ Nothing Alien Tech Used ----------------- None Achievements -------------- None Challenges ------------ None Game ------ Seed MetafiberLauncherMace Manual? 0 Play Time 00:09:43 Cumulative 21.1 hours Start 2024.12.21 @ 18:40:33 End 2024.12.21 @ 18:48:39 Sessions 1 Manual Loads 0 Difficulty Rogue Special Mode None Game No. 33 Rogue 30 Adventurer 3 Explorer 0 Win Type - Total 0 Types 0/0/0/0/0/0/0/0/0 Lore% 9 Gallery% 19 Achievement% 15 Wizard Run 0 Options --------- Layout 1 ASCII 0 Keyboard 1 Movement Numpad Keybinds 0 Fullscreen 1 Font 24/Smallcaps Map View 50x35 Zoom Use 0% Tactical HUD 1 Map Filters NONE Filters NONE Steam 1 RUN: 6e225c42-ab0a-40c5-9114-c7923f92b453